bitfinex/quotes_BTCUSD_20240728
["timestamp","ask_amount","ask_price","bid_price","bid_amount"]
[1722172854990,1.99241176,68106.0,68098.0,0.0657]
[1722172855321,1.99241176,68106.0,68093.0,0.0657]
[1722172855322,1.35926867,68095.0,68093.0,0.0657]
[1722172855487,1.46695576,68095.0,68092.0,0.009086]
[1722172855681,1.82798787,68095.0,68094.0,0.074786]
[1722172855874,1.58995576,68095.0,68094.0,0.074786]
[1722172856087,1.61301276,68095.0,68094.0,0.074786]
[1722172856297,1.82492076,68095.0,68094.0,0.074786]
[1722172856505,1.83192076,68095.0,68094.0,0.074786]
[1722172856716,1.34695576,68095.0,68094.0,0.074786]
[1722172856925,1.35495576,68095.0,68094.0,0.074786]
[1722172857129,1.35484633,68095.0,68094.0,0.074586]
[1722172857324,1.84001132,68095.0,68094.0,0.074586]
[1722172857536,1.83981133,68095.0,68094.0,0.074586]
[1722172857928,1.83981133,68095.0,68094.0,0.008886]
[1722172859780,1.86286844,68095.0,68094.0,0.008886]
[1722172859995,1.84859198,68095.0,68094.0,0.008886]
[1722172860133,1.98829198,68095.0,68094.0,0.008886]
[1722172860344,1.92597982,68095.0,68094.0,0.008886]
[1722172860545,1.84827982,68095.0,68094.0,0.008886]
[1722172861352,0.41941467,68092.0,68091.0,0.002]
[1722172861615,1.09663217,68092.0,68091.0,0.002]
[1722172861757,1.58958417,68092.0,68091.0,0.002]
[1722172861929,1.34048164,68092.0,68091.0,0.002]
[1722172862131,1.33958417,68092.0,68091.0,0.1418]
[1722172862382,1.59113837,68092.0,68091.0,0.1418]
[1722172862545,1.59101841,68092.0,68091.0,0.1418]
[1722172862794,1.48231867,68092.0,68091.0,0.0654]
[1722172862989,1.59101851,68092.0,68091.0,0.0654]
[1722172863607,1.62807697,68092.0,68091.0,0.0654]
[1722172863803,1.62807697,68092.0,68091.0,0.002]
[1722172864793,1.86305297,68092.0,68091.0,0.002]
[1722172865212,1.84905297,68092.0,68091.0,0.002]
[1722172865418,1.86305297,68092.0,68091.0,0.002]
[1722172865632,1.51937713,68092.0,68091.0,0.002]
[1722172865840,1.37757865,68092.0,68091.0,0.1418]
[1722172866295,1.37757865,68092.0,68091.0,0.11874133]
[1722172866296,1.48551413,68092.0,68091.0,0.11874133]
[1722172866511,1.37721437,68092.0,68091.0,0.11874133]
[1722172868943,1.04211593,68092.0,68091.0,0.11874133]
[1722172869578,0.99218926,68092.0,68091.0,0.11874133]
[1722172869790,0.96918926,68092.0,68091.0,0.11874133]
[1722172870221,0.95518926,68092.0,68091.0,0.11874133]
[1722172870438,1.05518926,68092.0,68091.0,0.11874133]
[1722172871069,1.07818926,68092.0,68091.0,0.11874133]
[1722172871732,1.09218926,68092.0,68091.0,0.11874133]
[1722172872134,1.09237535,68092.0,68091.0,0.11874133]
[1722172872594,1.09231449,68092.0,68091.0,0.11874133]
[1722172875239,0.98447446,68092.0,68091.0,0.11874133]
[1722172875414,1.09210424,68092.0,68091.0,0.11874133]
[1722172876734,1.06904578,68092.0,68091.0,0.11874133]
[1722172878381,0.961416,68092.0,68091.0,0.11874133]
[1722172878591,1.21419535,68092.0,68091.0,0.11874133]
[1722172878832,1.28423857,68092.0,68091.0,0.11874133]
[1722172879039,1.06778824,68092.0,68091.0,0.11874133]
[1722172879807,1.34313557,68092.0,68091.0,0.11874133]
[1722172880644,1.12668524,68092.0,68091.0,0.11874133]
[1722172880947,0.89170924,68092.0,68091.0,0.11874133]
[1722172881150,1.12668524,68092.0,68091.0,0.11966533]
[1722172881382,1.12752524,68092.0,68091.0,0.11966533]
[1722172881555,1.05587857,68092.0,68091.0,0.11966533]
[1722172881759,1.12830505,68092.0,68091.0,0.11966533]
[1722172882155,1.12830849,68092.0,68091.0,0.11966533]
[1722172883175,1.11430849,68092.0,68091.0,0.11966533]
[1722172883621,1.12830849,68092.0,68091.0,0.11966533]
[1722172884274,1.11441027,68092.0,68091.0,0.11966533]
[1722172884501,1.13746716,68092.0,68091.0,0.11966533]
[1722172884759,1.03320989,68092.0,68091.0,0.11966533]
[1722172884982,1.11754098,68092.0,68091.0,0.11966533]
[1722172887415,0.04068583,68092.0,68091.0,0.13163186]
[1722172887661,0.17269887,68092.0,68091.0,0.13163186]
[1722172887909,0.00384,68092.0,68091.0,0.13163186]
[1722172888125,0.02689493,68092.0,68091.0,0.13163186]
[1722172888356,0.02689493,68092.0,68091.0,0.24912086]
[1722172888582,0.06525807,68092.0,68091.0,0.24912086]
[1722172888832,0.06370387,68092.0,68091.0,0.13163186]
[1722172889732,0.06070387,68092.0,68091.0,0.13163186]
[1722172890262,0.06170387,68092.0,68091.0,0.13363186]
[1722172890479,0.06370387,68092.0,68091.0,0.12166533]
[1722172890913,0.06170387,68092.0,68091.0,0.12166533]
[1722172891128,0.02689493,68092.0,68091.0,0.12166533]
[1722172891338,0.06332734,68092.0,68091.0,0.12166533]
[1722172891783,0.0634183,68092.0,68091.0,0.12166533]
[1722172892402,0.0649725,68092.0,68091.0,0.12166533]
[1722172892602,0.0634183,68092.0,68091.0,0.12166533]
[1722172892794,0.0649725,68092.0,68091.0,0.12166533]
[1722172892996,0.0634183,68092.0,68091.0,0.12166533]
[1722172893229,0.0649725,68092.0,68091.0,0.12166533]
[1722172893389,0.0634183,68092.0,68091.0,0.12166533]
[1722172893546,0.02689493,68092.0,68091.0,0.12166533]
[1722172893776,0.06141601,68092.0,68091.0,0.16908066]
[1722172893949,0.06141601,68092.0,68091.0,0.12166533]
[1722172893950,0.06341601,68092.0,68091.0,0.12166533]
[1722172894399,0.06141712,68092.0,68091.0,0.12166533]
[1722172894823,0.06141712,68092.0,68091.0,0.23915433]
[1722172895247,0.06141712,68092.0,68091.0,0.12166533]
[1722172895991,0.06141712,68092.0,68091.0,0.47413333]
[1722172896237,0.1713343,68092.0,68091.0,0.56854486]
[1722172896638,0.06141712,68092.0,68091.0,0.56854486]
[1722172897176,0.06178898,68092.0,68091.0,0.56854486]
[1722172897595,0.06170242,68092.0,68091.0,0.56854486]
[1722172897842,0.12655298,68092.0,68091.0,0.56854486]
[1722172898248,0.12655298,68092.0,68091.0,0.47413333]
[1722172898457,0.03864857,68092.0,68091.0,0.47413333]
[1722172898872,0.14852468,68092.0,68091.0,0.47413333]
[1722172899478,0.03864857,68092.0,68091.0,0.47413333]
[1722172899911,0.14852468,68092.0,68091.0,0.70911233]
[1722172900112,0.12653453,68092.0,68091.0,0.81103524]
[1722172900341,0.03864857,68092.0,68091.0,1.09401424]
[1722172900522,0.00184,68092.0,68091.0,1.09401424]
[1722172901221,0.02489232,68092.0,68091.0,1.04601424]
[1722172901416,0.02389232,68092.0,68091.0,0.70711233]
[1722172901638,0.00284,68092.0,68091.0,0.70711233]
[1722172901839,0.03967196,68092.0,68091.0,0.70911233]
[1722172902016,0.08205596,68092.0,68091.0,0.70911233]
[1722172902222,0.03711776,68092.0,68091.0,0.70711233]
[1722172902439,0.03867196,68092.0,68091.0,0.70711233]
[1722172902868,0.08461016,68092.0,68091.0,0.70711233]
[1722172903071,0.08319698,68092.0,68091.0,0.70711233]
[1722172903479,0.03925888,68092.0,68091.0,0.70711233]
[1722172903816,0.08219708,68092.0,68091.0,0.72011233]
[1722172904263,0.04576544,68092.0,68091.0,0.72011233]
[1722172904468,0.08219728,68092.0,68091.0,0.72011233]
[1722172904876,0.03827184,68092.0,68091.0,0.72011233]
[1722172905082,0.06132428,68092.0,68091.0,0.72011233]
[1722172905740,0.03827184,68092.0,68091.0,0.82042256]
[1722172906156,0.03827184,68092.0,68091.0,0.86842256]
[1722172907212,0.03827184,68092.0,68091.0,1.10340156]
[1722172907430,0.00184,68092.0,68091.0,1.10340156]
[1722172908912,0.02489228,68092.0,68091.0,1.10340156]
[1722172909349,0.06143104,68092.0,68091.0,1.10340156]
[1722172910109,0.02489228,68092.0,68091.0,1.10340156]
[1722172910632,0.0614232,68092.0,68091.0,1.10340156]
[1722172910838,0.06141246,68092.0,68091.0,1.10340156]
[1722172911261,0.02489228,68092.0,68091.0,1.10340156]
[1722172911650,0.06141745,68092.0,68091.0,1.10340156]
[1722172913230,0.02489228,68092.0,68091.0,1.10340156]
[1722172913432,0.02489228,68092.0,68091.0,1.10540156]
[1722172914532,0.00184,68092.0,68091.0,1.10540156]
[1722172914767,0.00184,68092.0,68091.0,1.10340156]
[1722172915133,0.03818132,68092.0,68091.0,1.05540156]
[1722172915331,0.03818132,68092.0,68091.0,1.10340156]
[1722172915764,0.03818132,68092.0,68091.0,1.05540156]
[1722172916152,0.03818132,68092.0,68091.0,1.29038056]
[1722172916361,0.00184,68092.0,68091.0,1.59038056]
[1722172917027,0.00084,68092.0,68091.0,1.57738056]
[1722172917452,0.00184,68092.0,68091.0,1.58538056]
[1722172917988,0.0248889,68092.0,68091.0,1.57738056]
[1722172918190,0.0238889,68092.0,68091.0,1.57738056]
[1722172918396,0.0248889,68092.0,68091.0,1.58538056]
[1722172918602,0.0248889,68092.0,68091.0,1.58338056]
[1722172919038,0.0248889,68092.0,68091.0,1.33538056]
[1722172919188,0.0248889,68092.0,68091.0,1.58338056]
[1722172919840,0.0248889,68092.0,68091.0,1.33538056]
[1722172920614,0.0248889,68092.0,68091.0,1.58538056]
[1722172921133,0.0248889,68092.0,68091.0,1.10040156]
[1722172921463,0.0248889,68092.0,68091.0,1.34840156]
[1722172922623,0.0248889,68092.0,68091.0,1.35040156]
[1722172924456,0.0248889,68092.0,68091.0,1.05040156]
[1722172924660,0.0248889,68092.0,68091.0,0.99809133]
[1722172925253,0.0248889,68092.0,68091.0,1.48307033]
[1722172925479,0.00184,68092.0,68091.0,1.48307033]
[1722172925851,0.00184,68092.0,68091.0,1.48507033]
[1722172926871,0.00184,68092.0,68091.0,0.76311233]
[1722172927075,0.00184,68092.0,68091.0,0.83962356]
[1722172927686,0.00184,68092.0,68091.0,0.79162356]
[1722172928579,0.02489111,68092.0,68091.0,0.79162356]
[1722172928782,0.02489111,68092.0,68091.0,1.02660256]
[1722172929390,0.02489111,68092.0,68091.0,0.95009133]
[1722172929391,0.06166916,68092.0,68091.0,0.95009133]
[1722172929563,0.06322336,68092.0,68091.0,0.95009133]
[1722172929858,0.02644531,68092.0,68091.0,0.95009133]
[1722172930058,0.00184,68092.0,68091.0,0.95009133]
[1722172930168,0.00184,68092.0,68091.0,1.04990046]
[1722172930587,0.0033942,68092.0,68091.0,1.04990046]
[1722172931483,0.04737619,68092.0,68091.0,1.09790046]
[1722172932269,0.0033942,68092.0,68091.0,1.09790046]
[1722172932515,0.03786694,68092.0,68091.0,1.09790046]
[1722172933031,0.03942114,68092.0,68091.0,1.09790046]
[1722172933233,0.10546496,68092.0,68091.0,1.09790046]
[1722172933435,0.10391076,68092.0,68091.0,1.09790046]
[1722172934181,0.10391076,68092.0,68091.0,1.09990046]
[1722172934182,0.00184,68092.0,68091.0,1.09990046]
[1722172934340,0.0033942,68092.0,68091.0,1.09990046]
[1722172934544,0.04742785,68092.0,68091.0,1.09990046]
[1722172934809,0.04742779,68092.0,68091.0,1.09990046]
[1722172935046,0.07047887,68092.0,68091.0,1.09990046]
[1722172935425,0.02489108,68092.0,68091.0,1.09990046]
[1722172935672,0.06892626,68092.0,68091.0,1.09990046]
[1722172935818,0.04587518,68092.0,68091.0,1.09990046]
[1722172936216,0.00184,68092.0,68091.0,1.09990046]
[1722172936461,0.0033942,68092.0,68091.0,1.09990046]
[1722172938135,0.02644529,68092.0,68091.0,1.09990046]
[1722172939364,0.12893241,68092.0,68091.0,1.09990046]
[1722172939567,0.10432712,68092.0,68091.0,1.09990046]
[1722172939819,0.00184,68092.0,68091.0,1.33487946]
[1722172939983,0.0033942,68092.0,68091.0,1.33487946]
[1722172940177,0.00184,68092.0,68091.0,1.33487946]
[1722172941075,0.00184,68092.0,68091.0,1.97485846]
[1722172941283,0.0440444,68101.0,68100.0,0.556474]
[1722172941489,0.11010745,68106.0,68102.0,0.541411]
[1722172941490,0.0440444,68103.0,68102.0,0.541411]
[1722172941699,0.0440444,68104.0,68103.0,0.635345]
[1722172941948,0.0440444,68104.0,68103.0,1.244221]
[1722172942156,0.70352856,68121.0,68116.0,0.117446]
[1722172942311,0.48846677,68117.0,68116.0,0.352339]
[1722172942510,0.03768805,68117.0,68116.0,0.352339]
[1722172942709,0.03768805,68117.0,68116.0,0.6497568]
[1722172942958,0.03568805,68117.0,68116.0,0.6497568]
[1722172943124,0.03568805,68117.0,68116.0,0.9932498]
[1722172943276,0.03568805,68117.0,68116.0,1.0239498]
[1722172943471,0.14573502,68117.0,68116.0,1.0719498]
[1722172943878,0.14573502,68117.0,68116.0,1.0239498]
[1722172944296,0.03568805,68117.0,68116.0,1.0239498]
[1722172944894,0.03568805,68117.0,68116.0,1.0759498]
[1722172945109,0.06685141,68118.0,68117.0,0.930711]
[1722172945288,0.00084,68118.0,68117.0,1.06179458]
[1722172945499,0.04483478,68118.0,68117.0,1.06179458]
[1722172945724,0.06787846,68118.0,68117.0,1.06179458]
[1722172945952,0.06787846,68118.0,68117.0,1.01379458]
[1722172946152,0.08989509,68118.0,68117.0,1.01379458]
[1722172946354,0.06685141,68118.0,68117.0,0.647822]
[1722172946557,0.06685141,68118.0,68117.0,0.601222]
[1722172946774,0.03641241,68118.0,68117.0,0.601222]
[1722172947192,0.10237898,68118.0,68117.0,0.601222]
[1722172947400,0.06680657,68118.0,68117.0,0.601222]
[1722172947806,0.06680657,68118.0,68117.0,0.69773677]
[1722172948294,0.00084,68118.0,68117.0,0.69773677]
[1722172948494,0.0668068,68118.0,68117.0,0.68373677]
[1722172948700,0.0668068,68118.0,68117.0,0.587222]
[1722172948916,0.0668068,68118.0,68117.0,0.601222]
[1722172949224,0.00084,68118.0,68117.0,0.587222]
[1722172949423,0.00084,68118.0,68117.0,0.601222]
[1722172949424,0.10202302,68118.0,68117.0,0.601222]
[1722172949558,0.03605622,68118.0,68117.0,0.601222]
[1722172949767,0.05909989,68118.0,68117.0,0.601222]
[1722172949968,0.12505049,68118.0,68117.0,0.601222]
[1722172950554,0.08983427,68118.0,68117.0,0.601222]
[1722172951008,0.12493058,68118.0,68117.0,0.601222]
[1722172951197,0.12492156,68118.0,68117.0,0.601222]
[1722172951575,0.0590918,68118.0,68117.0,0.601222]
[1722172951928,0.02388367,68118.0,68117.0,0.601222]
[1722172952125,0.05909208,68118.0,68117.0,0.601222]
[1722172952364,0.12503196,68118.0,68117.0,0.601222]
[1722172952519,0.05909208,68118.0,68117.0,0.601222]
[1722172952912,0.08982592,68118.0,68117.0,0.70457124]
[1722172953683,0.08982592,68118.0,68117.0,0.601222]
[1722172954238,0.08982215,68118.0,68117.0,0.601222]
[1722172954672,0.02388367,68118.0,68117.0,0.601222]
[1722172954883,0.06783934,68118.0,68117.0,0.601222]
[1722172955053,0.02388367,68118.0,68117.0,0.601222]
[1722172955253,0.06783934,68118.0,68117.0,0.70457034]
[1722172955455,0.02388367,68118.0,68117.0,0.70457034]
[1722172955868,0.06783934,68118.0,68117.0,0.70457034]
[1722172956046,0.02388367,68118.0,68117.0,0.70457034]
[1722172956332,0.067836,68118.0,68117.0,0.70457034]
[1722172957843,0.02388367,68118.0,68117.0,0.70457034]
[1722172958047,0.06783617,68118.0,68117.0,0.70457034]
[1722172958253,0.02388367,68118.0,68117.0,0.70457034]
[1722172958830,0.06783657,68118.0,68117.0,0.70457034]
[1722172959863,0.02388367,68118.0,68117.0,0.70457034]
[1722172960157,0.06783642,68118.0,68117.0,0.70457034]
[1722172961146,0.02388367,68118.0,68117.0,0.70457034]
[1722172961347,0.06783588,68118.0,68117.0,0.70457034]
[1722172961751,0.02388367,68118.0,68117.0,0.70457034]
[1722172963525,0.05899319,68118.0,68117.0,0.70457034]
[1722172963724,0.05899372,68118.0,68117.0,0.70457034]
[1722172966476,0.10294263,68118.0,68117.0,0.70457034]
[1722172966837,0.10294263,68118.0,68117.0,1.13335934]
[1722172967040,0.05899372,68118.0,68117.0,1.13335934]
[1722172967267,0.02388367,68118.0,68117.0,1.13335934]
[1722172967885,0.00084,68118.0,68117.0,1.13535934]
[1722172968312,0.00084,68118.0,68117.0,1.12135934]
[1722172968526,0.00084,68118.0,68117.0,1.13535934]
[1722172969800,0.00084,68118.0,68117.0,1.08535934]
[1722172970002,0.00084,68118.0,68117.0,1.13335934]
[1722172970203,0.03549105,68118.0,68117.0,1.08535934]
[1722172971032,0.03559835,68118.0,68117.0,1.08535934]
[1722172971294,0.05864164,68118.0,68117.0,1.08535934]
[1722172971501,0.05863034,68118.0,68117.0,1.08535934]
[1722172973377,0.02388329,68118.0,68117.0,1.08535934]
[1722172973611,0.05859215,68118.0,68117.0,1.13335934]
[1722172974251,0.02388329,68118.0,68117.0,1.13335934]
[1722172974417,0.05859001,68118.0,68117.0,1.13335934]
[1722172976821,0.05859001,68118.0,68117.0,0.70457034]
[1722172976822,0.03554672,68118.0,68117.0,0.70457034]
[1722172977029,0.03554672,68118.0,68117.0,0.89847034]
[1722172977142,0.00084,68118.0,68117.0,1.13535934]
[1722172980514,0.00084,68118.0,68117.0,0.85047034]
[1722172980968,0.00084,68118.0,68117.0,1.08535934]
[1722172981174,0.00084,68118.0,68117.0,1.00325934]
[1722172981430,0.02388312,68118.0,68117.0,1.00325934]
[1722172981905,0.00084,68118.0,68117.0,1.00325934]
[1722172982121,0.00084,68118.0,68117.0,1.05125934]
[1722172983745,0.02388282,68118.0,68117.0,1.05125934]
[1722172983939,0.06788346,68118.0,68117.0,1.05125934]
[1722172984365,0.02388282,68118.0,68117.0,1.05125934]
[1722172984907,0.00084,68118.0,68117.0,1.05125934]
[1722172986087,0.06691642,68118.0,68117.0,1.05125934]
[1722172986317,0.0889419,68118.0,68117.0,1.05125934]
[1722172986920,0.14493537,68118.0,68117.0,1.05125934]
[1722172987158,0.14497617,68118.0,68117.0,1.05125934]
[1722172987384,0.03480799,68118.0,68117.0,1.05125934]
[1722172987914,0.05785128,68118.0,68117.0,1.05125934]
[1722172989602,0.05800999,68118.0,68117.0,1.05125934]
[1722172992327,0.05800999,68118.0,68117.0,0.947911]
[1722172992771,0.05800999,68118.0,68117.0,0.601222]
[1722172992772,0.10608329,68118.0,68117.0,0.601222]
[1722172992974,0.14027347,68118.0,68117.0,0.601222]
[1722172993205,0.14027587,68118.0,68117.0,0.601222]
[1722172994641,0.14027587,68118.0,68117.0,0.69689354]
[1722172995152,0.14024361,68118.0,68117.0,0.69689354]
[1722172995937,0.14019933,68118.0,68117.0,0.69689354]
[1722172997637,0.14019933,68118.0,68117.0,0.46200454]
[1722173001192,0.27246804,68118.0,68117.0,0.46200454]
[1722173001356,0.14019933,68118.0,68117.0,0.46200454]
[1722173002420,0.14009946,68118.0,68117.0,0.46200454]
[1722173002791,0.10608329,68118.0,68117.0,0.46200454]
[1722173002931,0.14009769,68118.0,68117.0,0.46200454]
[1722173004077,0.14009769,68118.0,68117.0,0.69689354]
[1722173004482,0.14009769,68118.0,68117.0,0.46200454]
[1722173004679,0.238352,68118.0,68117.0,0.46200454]
[1722173004837,0.14002454,68118.0,68117.0,0.46200454]
[1722173005467,0.10608329,68118.0,68117.0,0.46200454]
[1722173005668,0.13999199,68118.0,68117.0,0.46200454]
[1722173007148,0.13999199,68118.0,68117.0,0.69689354]
[1722173008146,0.13998016,68118.0,68117.0,0.69689354]
[1722173008856,0.13998175,68118.0,68117.0,0.69689354]
[1722173009892,0.05778175,68118.0,68117.0,0.69689354]
[1722173011482,0.05778175,68118.0,68117.0,0.88259354]
[1722173012061,0.02388329,68118.0,68117.0,0.88259354]
[1722173012266,0.05778758,68118.0,68117.0,0.014]
[1722173012446,0.05778758,68118.0,68117.0,0.366333]
[1722173012790,0.03474429,68118.0,68117.0,0.366333]
[1722173013536,0.03474429,68118.0,68117.0,0.131444]
[1722173013937,0.03474429,68118.0,68117.0,0.014]
[1722173013938,0.30458923,68118.0,68117.0,0.014]
[1722173014135,0.50622792,68118.0,68117.0,0.014]
[1722173014422,0.61533836,68118.0,68117.0,0.014]
[1722173014555,0.85013137,68118.0,68117.0,0.014]
[1722173015330,0.748655,68118.0,68117.0,0.014]
[1722173015496,0.724822,68117.0,68116.0,0.000924]
[1722173015731,0.84971272,68117.0,68116.0,0.000924]
[1722173016094,0.87275994,68117.0,68116.0,0.000924]
[1722173018744,0.87330144,68117.0,68116.0,0.004924]
[1722173021349,1.10819044,68117.0,68116.0,0.004924]
[1722173021958,1.10832092,68117.0,68116.0,0.004924]
[1722173022483,1.10831951,68117.0,68116.0,0.004924]
[1722173023274,1.00575822,68117.0,68116.0,0.004924]
[1722173023475,1.00575822,68117.0,68116.0,0.000924]
[1722173023476,1.10851093,68117.0,68116.0,0.000924]
[1722173024525,1.15881223,68117.0,68116.0,0.000924]
[1722173024691,1.97859023,68117.0,68116.0,0.000924]
[1722173024899,1.99383745,68117.0,68116.0,0.000924]
[1722173025138,1.97859023,68117.0,68116.0,0.000924]
[1722173025339,1.87546289,68117.0,68116.0,0.000924]
[1722173025540,1.97842284,68117.0,68116.0,0.000924]
[1722173025938,1.97062212,68117.0,68116.0,0.000924]
[1722173026141,1.97062212,68117.0,68116.0,0.001924]
[1722173028168,2.17153551,68117.0,68116.0,0.001924]
[1722173028549,2.17224434,68117.0,68116.0,0.001924]
[1722173028970,2.18748153,68117.0,68116.0,0.001924]
[1722173029177,1.97133314,68117.0,68116.0,0.001924]
[1722173029720,1.99438484,68117.0,68116.0,0.001924]
[1722173029851,1.97914765,68117.0,68116.0,0.001924]
[1722173030290,2.19496353,68117.0,68116.0,0.001924]
[1722173030513,1.97914765,68117.0,68116.0,0.001924]
[1722173030916,1.95609595,68117.0,68116.0,0.001924]
[1722173031341,1.47120695,68117.0,68116.0,0.001924]
[1722173031546,1.36752667,68117.0,68116.0,0.001924]
[1722173031741,1.72107113,68117.0,68116.0,0.001924]
[1722173032096,1.95596013,68117.0,68116.0,0.001924]
[1722173032301,1.36752667,68117.0,68116.0,0.001924]
[1722173032563,1.47138659,68117.0,68116.0,0.001924]
[1722173033091,1.48662107,68117.0,68116.0,0.001924]
[1722173033296,1.68462107,68117.0,68116.0,0.001924]
[1722173033413,1.66162107,68117.0,68116.0,0.001924]
[1722173033617,1.46362107,68117.0,68116.0,0.001924]
[1722173033823,1.48667246,68117.0,68116.0,0.001924]
[1722173034187,1.44838659,68117.0,68116.0,0.001924]
[1722173034419,1.46314853,68117.0,68116.0,0.001924]
[1722173034545,1.66114853,68117.0,68116.0,0.001924]
[1722173034751,1.48614853,68117.0,68116.0,0.001924]
[1722173034952,1.68414853,68117.0,68116.0,0.001924]
[1722173035200,1.48624408,68117.0,68116.0,0.001924]
[1722173037287,1.50929506,68117.0,68116.0,0.001924]
[1722173037910,1.50929506,68117.0,68116.0,0.000924]
[1722173038251,1.60381306,68117.0,68116.0,0.001924]
[1722173038395,1.70724255,68117.0,68116.0,0.001924]
[1722173038914,1.68419157,68117.0,68116.0,0.001924]
[1722173039111,1.2013759,68117.0,68116.0,0.001924]
[1722173039311,1.1411759,68117.0,68116.0,0.001924]
[1722173040139,1.14200861,68117.0,68116.0,0.001924]
[1722173041138,1.48682428,68117.0,68116.0,0.001924]
[1722173041335,1.73682428,68117.0,68116.0,0.000924]
[1722173041544,1.48724764,68117.0,68116.0,0.001924]
[1722173041725,1.67001952,68117.0,68116.0,0.001924]
[1722173041931,1.68524566,68117.0,68116.0,0.000924]
[1722173042154,1.68524566,68117.0,68116.0,0.001924]
[1722173042155,1.70829665,68117.0,68116.0,0.001924]
[1722173042361,1.76029665,68117.0,68116.0,0.001924]
[1722173042624,1.76029665,68117.0,68116.0,0.000924]
[1722173042771,1.73724566,68117.0,68116.0,0.000924]
[1722173042975,1.73724566,68117.0,68116.0,0.001924]
[1722173043177,1.73724566,68117.0,68116.0,0.000924]
[1722173043583,1.86828181,68117.0,68116.0,0.000924]
[1722173043769,1.97317512,68117.0,68116.0,0.000924]
[1722173045289,1.98717512,68117.0,68116.0,0.000924]
[1722173045938,2.01022704,68117.0,68116.0,0.000924]
[1722173046131,1.9950009,68117.0,68116.0,0.000924]
[1722173046285,2.01022246,68117.0,68116.0,0.000924]
[1722173046719,1.90532915,68117.0,68116.0,0.000924]
[1722173046921,2.00953569,68117.0,68116.0,0.000924]
[1722173048644,1.99432279,68117.0,68116.0,0.000924]
[1722173049046,2.00953819,68117.0,68116.0,0.000924]
[1722173049501,1.99432279,68117.0,68116.0,0.000924]
[1722173050035,2.00953823,68117.0,68116.0,0.000924]
[1722173053042,1.75953823,68117.0,68116.0,0.000924]
[1722173053297,1.52464923,68117.0,68116.0,0.000924]
[1722173054036,2.01231728,68117.0,68116.0,0.000924]
[1722173054445,1.99710184,68117.0,68116.0,0.000924]
[1722173054609,1.97404992,68117.0,68116.0,0.000924]
[1722173055011,2.20451195,68117.0,68116.0,0.000924]
[1722173055184,1.9892549,68117.0,68116.0,0.000924]
[1722173056523,1.88481071,68117.0,68116.0,0.000924]
[1722173056726,1.98921042,68117.0,68116.0,0.000924]
[1722173056916,1.97400544,68117.0,68116.0,0.000924]
[1722173057557,1.99705739,68117.0,68116.0,0.000924]
[1722173058212,1.77737509,68117.0,68116.0,0.000924]
[1722173058533,1.52737509,68117.0,68116.0,0.000924]
[1722173059372,2.01226409,68117.0,68116.0,0.000924]
[1722173059738,2.01253513,68117.0,68116.0,0.000924]
[1722173059948,1.46764613,68117.0,68116.0,0.000924]
[1722173061447,1.71764613,68117.0,68116.0,0.000924]
[1722173062703,1.46764613,68117.0,68116.0,0.000924]
[1722173063104,1.46792453,68117.0,68116.0,0.000924]
[1722173063317,1.70595664,68117.0,68116.0,0.000924]
[1722173063613,1.68290476,68117.0,68116.0,0.000924]
[1722173063790,1.93290476,68117.0,68116.0,0.000924]
[1722173064639,1.69487265,68117.0,68116.0,0.000924]
[1722173065409,1.69476591,68117.0,68116.0,0.000924]
[1722173066220,1.58992343,68117.0,68116.0,0.000924]
[1722173066415,1.69470033,68117.0,68116.0,0.000924]
[1722173067070,1.71775074,68117.0,68116.0,0.000924]
[1722173068315,1.71520068,68117.0,68116.0,0.000924]
[1722173069524,1.71561418,68117.0,68116.0,0.000924]
[1722173072799,1.71563534,68117.0,68116.0,0.000924]
[1722173072996,1.69258493,68117.0,68116.0,0.000924]
[1722173073269,1.62326454,68117.0,68116.0,0.000924]
[1722173073471,1.69280619,68117.0,68116.0,0.000924]
[1722173075240,1.58737337,68117.0,68116.0,0.000924]
[1722173075419,1.69262211,68117.0,68116.0,0.000924]
[1722173076034,1.69262556,68117.0,68116.0,0.000924]
[1722173076443,1.7156761,68117.0,68116.0,0.000924]
[1722173076692,1.69262556,68117.0,68116.0,0.000924]
[1722173077121,1.69262556,68117.0,68116.0,0.00083161]
[1722173079190,1.58737337,68117.0,68116.0,0.00083161]
[1722173079388,1.69369603,68117.0,68116.0,0.00083161]
[1722173079591,1.71674657,68117.0,68116.0,0.00083161]
[1722173080410,1.71673459,68117.0,68116.0,0.00083161]
[1722173080831,1.69368405,68117.0,68116.0,0.00083161]
[1722173082518,1.58737337,68117.0,68116.0,0.00083161]
[1722173082720,1.69398136,68117.0,68116.0,0.00083161]
[1722173083888,1.44398136,68117.0,68116.0,0.00083161]
[1722173084216,1.46703122,68117.0,68116.0,0.00083161]
[1722173084425,1.44398136,68117.0,68116.0,0.00083161]
[1722173084627,1.36858136,68117.0,68116.0,0.00083161]
[1722173085084,1.3683365,68117.0,68116.0,0.00083161]
[1722173085463,1.36836905,68117.0,68116.0,0.00083161]
[1722173087210,1.36836905,68117.0,68116.0,0.00074845]
[1722173087416,1.39141891,68117.0,68116.0,0.00074845]
[1722173088057,1.9514377,68117.0,68116.0,0.00074845]
[1722173088262,1.7165487,68117.0,68116.0,0.00074845]
[1722173088663,1.87630791,68117.0,68116.0,0.00074845]
[1722173089087,1.64141891,68117.0,68116.0,0.00074845]
[1722173089641,1.61836905,68117.0,68116.0,0.00074845]
[1722173089977,1.85325805,68117.0,68116.0,0.00074845]
[1722173090178,1.61836905,68117.0,68116.0,0.00074845]
[1722173090584,1.85325805,68117.0,68116.0,0.00074845]
[1722173091432,1.61836905,68117.0,68116.0,0.00074845]
[1722173092049,1.85325805,68117.0,68116.0,0.00054845]
[1722173092462,1.81734038,68117.0,68116.0,0.00054845]
[1722173092663,2.0028104,68117.0,68116.0,0.00054845]
[1722173092801,2.02586009,68117.0,68116.0,0.00054845]
[1722173093235,2.0028104,68117.0,68116.0,0.00054845]
[1722173095828,2.002313,68117.0,68116.0,0.00054845]
[1722173096599,2.02536321,68117.0,68116.0,0.00054845]
[1722173097042,2.02536368,68117.0,68116.0,0.00054845]
[1722173097220,2.02536368,68117.0,68116.0,0.00049361]
[1722173097422,2.00231347,68117.0,68116.0,0.00049361]
[1722173097843,2.00231347,68117.0,68116.0,6.1e-07]
[1722173097844,2.23720247,68117.0,68116.0,6.1e-07]
[1722173098045,1.34399167,68108.0,68107.0,0.0648]
[1722173098375,1.58904947,68108.0,68107.0,0.0648]
[1722173098590,1.58904947,68108.0,68105.0,0.0753]
[1722173098591,1.59402467,68106.0,68105.0,0.1401]
[1722173098758,1.83908247,68106.0,68105.0,0.0648]
[1722173098965,1.73223184,68106.0,68105.0,0.0648]
[1722173099137,2.07769797,68106.0,68105.0,0.0648]
[1722173099355,1.8396282,68106.0,68105.0,0.0648]